Workbook

Sheet PP=0,6
B2: PP | C2: 0.5 | E2: f | F2: 1
E3: f2 | F3: 0.6
B5: счет,$ | C5: 100
D7: переменная ставка, критерий Келли
A8: Случ. Число | D8: AL=AP=f* | E8: Изм счета2
A9: =RAND() -> 0.2231203659 | D9: =IF(A9<C2,$C$5*$F$2,-$C$5*$F$3) -> 100 | E9: =$C$5+D9 -> 200
A10: =RAND() -> 0.4453665621 | D10: =IF(A10<$C$2,E9*$F$2,-E9*$F$3) -> 200 | E10: =E9+D10 -> 400
A11: 0.8019552911 | D11: =IF(A11<$C$2,E10*$F$2,-E10*$F$3) -> -240 | E11: =E10+D11 -> 160
A12: 0.1592235365 | D12: 160 | E12: 320
A13: 0.3428025594 | D13: 320 | E13: 640
A14: 0.2867808979 | D14: 640 | E14: 1280
A15: 0.6944890575 | D15: -768 | E15: 512
A16: 0.7391676981 | D16: -307.2 | E16: 204.8
A17: 0.9282501578 | D17: -122.88 | E17: 81.92
A18: 0.8890089152 | D18: -49.152 | E18: 32.768
A19: 0.7247075823 | D19: -19.6608 | E19: 13.1072
A20: 0.4960874448 | D20: 13.1072 | E20: 26.2144
A21: 0.2257518473 | D21: 26.2144 | E21: 52.4288
A22: 0.9151268115 | D22: -31.45728 | E22: 20.97152
A23: 0.1871938151 | D23: 20.97152 | E23: 41.94304
A24: 0.4665062502 | D24: 41.94304 | E24: 83.88608
A25: 0.9944353385 | D25: -50.331648 | E25: 33.554432
A26: 0.09373781462 | D26: 33.554432 | E26: 67.108864
A27: 0.5544044819 | D27: -40.2653184 | E27: 26.8435456
A28: 0.1200092087 | D28: 26.8435456 | E28: 53.6870912
A29: 0.003778558675 | D29: 53.6870912 | E29: 107.3741824
A30: 0.4512570159 | D30: 107.3741824 | E30: 214.7483648
A31: 0.2140075213 | D31: 214.7483648 | E31: 429.4967296
A32: 0.2885941506 | D32: 429.4967296 | E32: 858.9934592
A33: 0.3525733016 | D33: 858.9934592 | E33: 1717.986918
A34: 0.2287790898 | D34: 1717.986918 | E34: 3435.973837
A35: 0.4052960429 | D35: 3435.973837 | E35: 6871.947674
A36: 0.6601268299 | D36: -4123.168604 | E36: 2748.779069
A37: 0.1948392644 | D37: 2748.779069 | E37: 5497.558139
A38: 0.3720918054 | D38: 5497.558139 | E38: 10995.11628
A39: 0.7586152828 | D39: -6597.069767 | E39: 4398.046511
A40: 0.5796936618 | D40: -2638.827907 | E40: 1759.218604
A41: 0.8297329803 | D41: -1055.531163 | E41: 703.6874418
A42: 0.9278671591 | D42: -422.2124651 | E42: 281.4749767
A43: 0.4837476726 | D43: 281.4749767 | E43: 562.9499534
A44: 0.3389736909 | D44: 562.9499534 | E44: =E43+D44 -> 1125.899907
A45: 0.4125087227 | D45: 1125.899907 | E45: 2251.799814
A46: 0.07565670808 | D46: 2251.799814 | E46: 4503.599627
A47: 0.3849619301 | D47: 4503.599627 | E47: 9007.199255
A48: 0.6783806173 | D48: -5404.319553 | E48: 3602.879702
A49: 0.1591512797 | D49: 3602.879702 | E49: 7205.759404
A50: 0.9811197704 | D50: -4323.455642 | E50: 2882.303762
A51: 0.4649127201 | D51: 2882.303762 | E51: 5764.607523
A52: 0.3140335725 | D52: 5764.607523 | E52: 11529.21505
A53: 0.214881291 | D53: 11529.21505 | E53: 23058.43009
A54: 0.008630899585 | D54: 23058.43009 | E54: 46116.86018
A55: 0.3697822783 | D55: 46116.86018 | E55: 92233.72037
A56: 0.9484999992 | D56: -55340.23222 | E56: 36893.48815
A57: 0.6212769901 | D57: -22136.09289 | E57: 14757.39526
A58: 0.04961945164 | D58: 14757.39526 | E58: 29514.79052
A59: 0.4098313189 | D59: 29514.79052 | E59: 59029.58104
A60: 0.3454450453 | D60: 59029.58104 | E60: 118059.1621
A61: 0.130183173 | D61: 118059.1621 | E61: 236118.3241
A62: 0.9969832319 | D62: -141670.9945 | E62: 94447.32966
A63: 0.6553303602 | D63: -56668.39779 | E63: 37778.93186
A64: 0.554366125 | D64: -22667.35912 | E64: 15111.57275
A65: 0.7439808494 | D65: -9066.943647 | E65: 6044.629098
A66: 0.4128816905 | D66: 6044.629098 | E66: 12089.2582
A67: 0.2202953502 | D67: 12089.2582 | E67: 24178.51639
A68: 0.6343678164 | D68: -14507.10984 | E68: 9671.406557
A69: 0.7452371364 | D69: -5802.843934 | E69: 3868.562623
A70: 0.6996454325 | D70: -2321.137574 | E70: 1547.425049
A71: 0.07181021752 | D71: 1547.425049 | E71: 3094.850098
A72: 0.3428861062 | D72: 3094.850098 | E72: 6189.700196
A73: 0.3988217306 | D73: 6189.700196 | E73: 12379.40039
A74: =RAND() -> 0.8489791016 | D74: -7427.640236 | E74: 4951.760157
A75: 0.5764607925 | D75: =IF(A75<$C$2,E74*$F$2,-E74*$F$3) -> -2971.056094 | E75: =E74+D75 -> 1980.704063
A76: 0.9685104958 | D76: -1188.422438 | E76: 792.2816251
A77: 0.6421526833 | D77: -475.3689751 | E77: 316.9126501
A78: 0.1494321962 | D78: 316.9126501 | E78: 633.8253001
A79: 0.157015738 | D79: 633.8253001 | E79: 1267.6506
A80: 0.4000457009 | D80: 1267.6506 | E80: 2535.3012
A81: 0.2980700987 | D81: 2535.3012 | E81: 5070.602401
A82: 0.8260322637 | D82: -3042.361441 | E82: 2028.24096
A83: 0.1169533796 | D83: 2028.24096 | E83: 4056.481921
A84: 0.1357767475 | D84: 4056.481921 | E84: 8112.963841
A85: 0.601544428 | D85: -4867.778305 | E85: 3245.185537
A86: 0.6856434171 | D86: -1947.111322 | E86: 1298.074215
A87: 0.04584281576 | D87: 1298.074215 | E87: 2596.148429
A88: 0.2500568835 | D88: 2596.148429 | E88: 5192.296859
A89: 0.3259918437 | D89: 5192.296859 | E89: 10384.59372
A90: 0.4846803172 | D90: 10384.59372 | E90: 20769.18743
A91: 0.1818375263 | D91: 20769.18743 | E91: 41538.37487
A92: 0.938322761 | D92: -24923.02492 | E92: 16615.34995
A93: 0.5476146324 | D93: -9969.209968 | E93: 6646.139979
A94: 0.528657434 | D94: -3987.683987 | E94: 2658.455992
A95: 0.6473803756 | D95: -1595.073595 | E95: 1063.382397
A96: 0.2639126663 | D96: 1063.382397 | E96: 2126.764793
A97: 0.9656143232 | D97: -1276.058876 | E97: 850.7059173
A98: 0.06980677116 | D98: 850.7059173 | E98: 1701.411835
A99: 0.5077583861 | D99: -1020.847101 | E99: 680.5647338
A100: 0.9953068059 | D100: -408.3388403 | E100: 272.2258935
A101: 0.4323357456 | D101: 272.2258935 | E101: =E100+D101 -> 544.4517871
A102: 0.1870761671 | D102: 544.4517871 | E102: 1088.903574
A103: 0.04841939295 | D103: 1088.903574 | E103: 2177.807148
A104: 0.5611672524 | D104: -1306.684289 | E104: 871.1228593
A105: 0.2075692357 | D105: 871.1228593 | E105: 1742.245719
A106: 0.08327182768 | D106: 1742.245719 | E106: 3484.491437
A107: 0.7510114002 | D107: -2090.694862 | E107: 1393.796575
A108: 0.9173863396 | D108: -836.2779449 | E108: 557.51863
A109: 0.5938160305 | D109: -334.511178 | E109: 223.007452
A110: 0.9278863666 | D110: -133.8044712 | E110: 89.20298079
A111: 0.3642287175 | D111: 89.20298079 | E111: 178.4059616
A112: 0.4980623223 | D112: 178.4059616 | E112: 356.8119232
A113: 0.05846672656 | D113: 356.8119232 | E113: 713.6238464
A114: 0.01391355622 | D114: 713.6238464 | E114: 1427.247693
A115: 0.9879836543 | D115: -856.3486156 | E115: 570.8990771
A116: 0.966515574 | D116: -342.5394462 | E116: 228.3596308
A117: 0.4109063036 | D117: 228.3596308 | E117: 456.7192617
A118: 0.8617909939 | D118: -274.031557 | E118: 182.6877047
A119: 0.4010156667 | D119: 182.6877047 | E119: 365.3754093
A120: 0.706125081 | D120: -219.2252456 | E120: 146.1501637
A121: 0.6765846939 | D121: -87.69009824 | E121: 58.46006549
A122: 0.7232251058 | D122: -35.0760393 | E122: 23.3840262
A123: 0.9641345055 | D123: -14.03041572 | E123: 9.353610479
A124: 0.09639406218 | D124: 9.353610479 | E124: 18.70722096
A125: 0.5923006661 | D125: -11.22433257 | E125: 7.482888383
A126: 0.02501887954 | D126: 7.482888383 | E126: 14.96577677
A127: 0.2731173836 | D127: 14.96577677 | E127: 29.93155353
A128: 0.3613675323 | D128: 29.93155353 | E128: 59.86310707
A129: 0.8538659683 | D129: -35.91786424 | E129: 23.94524283
A130: 0.3799454443 | D130: 23.94524283 | E130: 47.89048565
A131: 0.5994632779 | D131: -28.73429139 | E131: 19.15619426
A132: 0.1370214851 | D132: 19.15619426 | E132: 38.31238852
A133: 0.240077922 | D133: 38.31238852 | E133: 76.62477704
A134: 0.9825908807 | D134: -45.97486623 | E134: 30.64991082
A135: 0.7207324402 | D135: -18.38994649 | E135: 12.25996433
A136: 0.5496004801 | D136: -7.355978596 | E136: 4.903985731
A137: 0.3401491487 | D137: 4.903985731 | E137: 9.807971462
A138: =RAND() -> 0.1672328267 | D138: 9.807971462 | E138: 19.61594292
A139: 0.2470910777 | D139: =IF(A139<$C$2,E138*$F$2,-E138*$F$3) -> 19.61594292 | E139: 39.23188585
A140: 0.2243878294 | D140: 39.23188585 | E140: 78.46377169
A141: 0.2551389669 | D141: 78.46377169 | E141: 156.9275434
A142: 0.09967099033 | D142: 156.9275434 | E142: 313.8550868
A143: 0.7510793526 | D143: -188.3130521 | E143: 125.5420347
A144: 0.8937953539 | D144: -75.32522082 | E144: 50.21681388
A145: 0.6459713117 | D145: -30.13008833 | E145: 20.08672555
A146: 0.7314625758 | D146: -12.05203533 | E146: 8.034690221
A147: 0.1349222269 | D147: 8.034690221 | E147: 16.06938044
A148: 0.3277925395 | D148: 16.06938044 | E148: 32.13876089
A149: 0.289946196 | D149: 32.13876089 | E149: 64.27752177
A150: 0.4187183375 | D150: 64.27752177 | E150: 128.5550435
A151: 0.07395987865 | D151: 128.5550435 | E151: 257.1100871
A152: 0.3785860298 | D152: 257.1100871 | E152: 514.2201742
A153: 0.4202469364 | D153: 514.2201742 | E153: 1028.440348
A154: 0.8184910683 | D154: -617.064209 | E154: 411.3761393
A155: 0.06860020777 | D155: 411.3761393 | E155: 822.7522787
A156: 0.4296698736 | D156: 822.7522787 | E156: 1645.504557
A157: 0.2770261378 | D157: 1645.504557 | E157: 3291.009115
A158: 0.7765501163 | D158: -1974.605469 | E158: 1316.403646
A159: 0.9546164394 | D159: -789.8421875 | E159: 526.5614583
A160: 0.08393847357 | D160: 526.5614583 | E160: 1053.122917
A161: 0.6963448929 | D161: -631.87375 | E161: 421.2491667
A162: 0.5881571608 | D162: -252.7495 | E162: 168.4996667
A163: 0.2426882023 | D163: 168.4996667 | E163: 336.9993333
A164: 0.911867973 | D164: -202.1996 | E164: 134.7997333
A165: 0.6388376086 | D165: -80.87984 | E165: =E164+D165 -> 53.91989333
A166: 0.5261112278 | D166: -32.351936 | E166: 21.56795733
A167: 0.9249490614 | D167: -12.9407744 | E167: 8.627182933
A168: 0.07859314757 | D168: 8.627182933 | E168: 17.25436587
A169: 0.5967095837 | D169: -10.35261952 | E169: 6.901746347
A170: 0.8661276848 | D170: -4.141047808 | E170: 2.760698539
A171: 0.4606511698 | D171: 2.760698539 | E171: 5.521397077
A172: 0.7977764477 | D172: -3.312838246 | E172: 2.208558831
A173: 0.7894594431 | D173: -1.325135299 | E173: 0.8834235324
A174: 0.01728439434 | D174: 0.8834235324 | E174: 1.766847065
A175: 0.4604869831 | D175: 1.766847065 | E175: 3.53369413
A176: 0.4288099433 | D176: 3.53369413 | E176: 7.067388259
A177: 0.8616353485 | D177: -4.240432955 | E177: 2.826955304
A178: 0.8941276351 | D178: -1.696173182 | E178: 1.130782121
A179: 0.8443973126 | D179: -0.6784692729 | E179: 0.4523128486
A180: 0.6018752539 | D180: -0.2713877091 | E180: 0.1809251394
A181: 0.3960584421 | D181: 0.1809251394 | E181: 0.3618502789
A182: 0.2466896419 | D182: 0.3618502789 | E182: 0.7237005577
A183: 0.4110733011 | D183: 0.7237005577 | E183: 1.447401115
A184: 0.1991099366 | D184: 1.447401115 | E184: 2.894802231
A185: 0.2771372866 | D185: 2.894802231 | E185: 5.789604462
A186: 0.7929936196 | D186: -3.473762677 | E186: 2.315841785
A187: 0.7047315695 | D187: -1.389505071 | E187: 0.9263367139
A188: 0.2466664077 | D188: 0.9263367139 | E188: 1.852673428
A189: 0.8186418005 | D189: -1.111604057 | E189: 0.7410693711
A190: 0.4495663238 | D190: 0.7410693711 | E190: 1.482138742
A191: 0.1018757871 | D191: 1.482138742 | E191: 2.964277484
A192: 0.8327733242 | D192: -1.778566491 | E192: 1.185710994
A193: 0.4039831206 | D193: 1.185710994 | E193: 2.371421988
A194: 0.4474820054 | D194: 2.371421988 | E194: 4.742843975
A195: 0.07901993333 | D195: 4.742843975 | E195: 9.48568795
A196: 0.9498142033 | D196: -5.69141277 | E196: 3.79427518
A197: 0.832641278 | D197: -2.276565108 | E197: 1.517710072
A198: 0.9251706098 | D198: -0.9106260432 | E198: 0.6070840288
A199: 0.206888082 | D199: 0.6070840288 | E199: 1.214168058
A200: 0.7856963106 | D200: -0.7285008346 | E200: 0.4856672231
A201: 0.811399668 | D201: -0.2914003338 | E201: 0.1942668892
A202: =RAND() -> 0.08113820744 | D202: 0.1942668892 | E202: 0.3885337784
A203: 0.436046805 | D203: =IF(A203<$C$2,E202*$F$2,-E202*$F$3) -> 0.3885337784 | E203: 0.7770675569
... 797 more rows
